bitfinex-derivatives/quotes_BTCF0:USTF0_20250722
["timestamp","ask_amount","ask_price","bid_price","bid_amount"]
[1753221474988,1.38543273,119600.0,119590.0,0.0228624]
[1753221475388,1.38543273,119600.0,119590.0,0.09810913]
[1753221475991,1.38543273,119600.0,119590.0,0.09810983]
[1753221476692,1.38543273,119600.0,119590.0,0.0228631]
[1753221476992,1.38543273,119600.0,119590.0,0.08305786]
[1753221477394,1.38543273,119600.0,119590.0,0.06019476]
[1753221479194,0.2963575,119590.0,119580.0,0.47176942]
[1753221479491,0.57522216,119590.0,119580.0,0.49463492]
[1753221479994,0.3106075,119590.0,119580.0,0.49463492]
[1753221480197,0.57522216,119590.0,119580.0,0.49463492]
[1753221481391,0.57522216,119590.0,119580.0,0.49463501]
[1753221482093,0.57522216,119590.0,119580.0,0.48156896]
[1753221482286,0.57522216,119590.0,119580.0,0.47176942]
[1753221482484,0.3106075,119590.0,119580.0,0.47176942]
[1753221482692,0.57522216,119590.0,119580.0,0.47176942]
[1753221484690,0.3106075,119590.0,119580.0,0.47176942]
[1753221484895,0.57522216,119590.0,119580.0,0.47176942]
[1753221486493,0.57522216,119590.0,119580.0,0.49463472]
[1753221488686,0.57522216,119590.0,119580.0,0.23002006]
[1753221488887,0.57522216,119590.0,119580.0,0.49463472]
[1753221489294,0.57522216,119590.0,119580.0,0.06019476]
[1753221489595,0.57522216,119590.0,119580.0,0.022866]
[1753221489799,0.57522216,119590.0,119580.0,0.06793032]
[1753221489994,0.57522216,119590.0,119580.0,0.00980004]
[1753221489995,0.83983682,119590.0,119580.0,0.00980004]
[1753221490198,0.83983682,119590.0,119580.0,5e-08]
[1753221490403,0.2986754,119570.0,119560.0,0.14484]
[1753221490599,1.14715006,119570.0,119560.0,0.14484]
[1753221491999,0.8825354,119570.0,119560.0,0.14484]
[1753221492300,1.14715006,119570.0,119560.0,0.13088]
[1753221492497,1.14715006,119570.0,119560.0,0.07552]
[1753221493500,1.14715006,119570.0,119560.0,0.0285]
[1753221494101,1.14715006,119570.0,119560.0,0.07552]
[1753221494297,1.14715006,119570.0,119560.0,0.0285]
[1753221495798,1.14815006,119570.0,119560.0,0.0285]
[1753221496004,1.15015006,119570.0,119560.0,0.0285]
[1753221496392,1.15015006,119570.0,119560.0,0.07552]
[1753221497307,0.3118694,119560.0,119550.0,0.21295891]
[1753221497508,0.57648406,119560.0,119550.0,0.21295891]
[1753221498104,0.1672234,119550.0,119540.0,0.06019476]
[1753221498299,0.3118973,119540.0,119530.0,0.0844181]
[1753221498611,0.3119114,119530.0,119520.0,0.13550199]
[1753221498804,0.57652606,119530.0,119520.0,0.07552]
[1753221499200,0.57652606,119530.0,119520.0,0.10686]
[1753221499396,0.57659323,119530.0,119520.0,0.10686]
[1753221499606,0.57659323,119530.0,119520.0,0.1368377]
[1753221499912,0.57659323,119530.0,119520.0,0.14579328]
[1753221500209,0.57659323,119530.0,119520.0,0.17669468]
[1753221500511,0.57659323,119530.0,119520.0,0.18377468]
[1753221501203,0.57759323,119530.0,119520.0,0.19677468]
[1753221501909,0.57759323,119530.0,119520.0,0.20984639]
[1753221502112,0.57759323,119530.0,119520.0,0.21965017]
[1753221502305,0.57859323,119530.0,119520.0,0.22865017]
[1753221503511,0.57859323,119530.0,119520.0,0.25109674]
[1753221505512,0.57859323,119530.0,119520.0,0.25109733]
[1753221508304,0.57859323,119530.0,119520.0,0.24129355]
[1753221508507,0.57859323,119530.0,119520.0,0.22822125]
[1753221509110,0.57859323,119530.0,119520.0,0.21426125]
[1753221509307,0.57859323,119530.0,119520.0,0.19181468]
[1753221510608,0.57859323,119530.0,119520.0,0.20577468]
[1753221510812,0.31397857,119530.0,119520.0,0.20577468]
[1753221511014,0.57859323,119530.0,119520.0,0.20577468]
[1753221514616,0.31397857,119530.0,119520.0,0.20577468]
[1753221514810,0.57859323,119530.0,119520.0,0.20577468]
[1753221515510,0.84320789,119530.0,119520.0,0.07400828]
[1753221515710,0.0979374,119520.0,119500.0,0.08948]
[1753221515916,0.2709034,119500.0,119490.0,0.21806461]
[1753221516210,0.83886272,119500.0,119490.0,0.05095023]
[1753221517212,0.66271526,119500.0,119490.0,0.07945023]
[1753221517617,0.66471526,119500.0,119490.0,0.10245023]
[1753221517818,0.66471526,119500.0,119490.0,0.07395023]
[1753221518520,0.66571526,119500.0,119490.0,0.08695023]
[1753221519913,0.66471526,119500.0,119490.0,0.06595023]
[1753221520321,0.66371526,119500.0,119490.0,0.05295023]
[1753221520620,0.66471526,119500.0,119490.0,0.05995023]
[1753221521720,0.66471526,119500.0,119490.0,0.08242753]
[1753221522214,0.66471526,119500.0,119490.0,0.0314773]
[1753221527727,0.66471526,119500.0,119490.0,0.0443618]
[1753221532735,0.66471526,119500.0,119490.0,0.0314773]
[1753221533126,0.66471526,119500.0,119490.0,0.03096775]
[1753221537130,0.84133706,119500.0,119490.0,0.03096775]
[1753221538946,0.2252674,119490.0,119480.0,0.11283913]
[1753221539143,1.41724106,119490.0,119480.0,0.12572656]
[1753221539343,1.41724106,119490.0,119480.0,0.13973192]
[1753221539543,1.41724106,119490.0,119480.0,0.09474515]
[1753221540044,1.41724106,119490.0,119480.0,0.10985772]
[1753221540240,1.42024106,119490.0,119480.0,0.10985772]
[1753221541251,1.42024106,119490.0,119480.0,0.13912772]
[1753221541453,1.42024106,119490.0,119480.0,0.10985772]
[1753221542253,1.42024106,119490.0,119480.0,0.13912772]
[1753221543143,0.8905374,119490.0,119480.0,0.13912772]
[1753221543347,1.15538923,119490.0,119480.0,0.18411449]
[1753221545460,1.15538923,119490.0,119480.0,0.19833449]
[1753221547262,1.15538923,119490.0,119480.0,0.24393449]
[1753221547956,1.42024106,119490.0,119480.0,0.24393449]
[1753221548461,1.42024106,119490.0,119480.0,0.19833449]
[1753221549262,1.42024106,119490.0,119480.0,0.24636449]
[1753221549762,1.42024106,119490.0,119480.0,0.25944289]
[1753221549962,1.42024106,119490.0,119480.0,0.24636449]
[1753221550459,1.43725278,119490.0,119480.0,0.11132739]
[1753221550757,0.3151812,119480.0,119470.0,0.05999198]
[1753221550962,1.10973669,119480.0,119470.0,0.01307875]
[1753221551161,1.10973669,119480.0,119470.0,0.02008318]
[1753221551364,1.10973669,119480.0,119470.0,0.08671935]
[1753221551864,1.10973669,119480.0,119470.0,0.0736406]
[1753221552162,1.11173669,119480.0,119470.0,0.01300443]
[1753221552364,1.11173669,119480.0,119470.0,0.006]
[1753221552864,1.11373669,119480.0,119470.0,0.006]
[1753221553258,1.11373669,119480.0,119470.0,0.03609923]
[1753221554768,1.12148993,119480.0,119470.0,0.03009923]
[1753221556367,1.12148993,119480.0,119470.0,0.01787923]
[1753221556567,0.2964452,119470.0,119460.0,0.06635792]
[1753221556768,1.39722886,119470.0,119460.0,0.06635792]
[1753221556967,1.39722886,119470.0,119460.0,0.08036796]
[1753221557570,1.39722886,119470.0,119460.0,0.01409076]
[1753221557769,1.39922886,119470.0,119460.0,0.01409076]
[1753221558374,1.41646586,119470.0,119460.0,0.01409076]
[1753221558671,1.41846586,119470.0,119460.0,0.01409076]
[1753221560975,1.41846586,119470.0,119460.0,0.07990253]
[1753221573585,1.41854586,119470.0,119460.0,0.07990253]
[1753221575876,1.41854586,119470.0,119460.0,0.09482253]
[1753221577290,1.41854586,119470.0,119460.0,0.07410558]
[1753221579995,0.84738586,119470.0,119460.0,0.07410558]
[1753221580192,1.41882586,119470.0,119460.0,0.07410558]
[1753221580693,1.41882586,119470.0,119460.0,0.14765558]
[1753221581193,1.41882586,119470.0,119460.0,0.18777913]
[1753221581588,1.41882586,119470.0,119460.0,0.14199913]
[1753221582695,0.84738586,119470.0,119460.0,0.14199913]
[1753221582897,1.41874586,119470.0,119460.0,0.14199913]
[1753221584798,0.8890422,119470.0,119460.0,0.14199913]
[1753221584986,1.41874586,119470.0,119460.0,0.14199913]
[1753221585998,1.41874586,119470.0,119460.0,0.18777913]
[1753221586300,1.41874586,119470.0,119460.0,0.21554913]
[1753221586501,1.41674586,119470.0,119460.0,0.21554913]
[1753221586798,1.41774586,119470.0,119460.0,0.21554913]
[1753221587501,0.8688052,119470.0,119460.0,0.21554913]
[1753221587700,1.39950886,119470.0,119460.0,0.21554913]
[1753221589502,1.39950886,119470.0,119460.0,0.18777913]
[1753221589701,1.39950886,119470.0,119460.0,0.14199913]
[1753221593712,1.39950886,119470.0,119460.0,0.21554913]
[1753221597612,1.39950886,119470.0,119460.0,0.215428]
[1753221600308,0.3197852,119470.0,119460.0,0.11278975]
[1753221600507,0.2263192,119460.0,119450.0,0.06026556]
[1753221600708,0.77033286,119460.0,119450.0,0.06494821]
[1753221600912,1.34205286,119460.0,119450.0,0.071955]
[1753221601110,1.41546286,119460.0,119450.0,0.071955]
[1753221601308,0.2609492,119460.0,119450.0,0.071955]
[1753221601608,0.1673492,119460.0,119450.0,0.75423083]
[1753221601810,0.1541992,119460.0,119450.0,0.75423083]
[1753221602013,0.1390492,119460.0,119450.0,0.98158161]
[1753221602208,0.1377992,119460.0,119450.0,0.81422281]
[1753221602509,0.1377992,119460.0,119450.0,0.88149281]
[1753221602708,0.1377992,119460.0,119450.0,0.82150083]
[1753221603109,0.004,119460.0,119450.0,0.98885963]
[1753221603305,0.0834547,119460.0,119450.0,1.25371146]
[1753221603508,0.1257063,119470.0,119450.0,1.22828056]
[1753221603509,0.6977463,119470.0,119450.0,1.22828056]
[1753221603711,0.864877,119470.0,119460.0,0.58991516]
[1753221603912,0.864877,119470.0,119460.0,0.34794992]
[1753221604112,0.864877,119470.0,119460.0,0.76536592]
[1753221604324,0.864877,119470.0,119460.0,0.76886917]
[1753221605019,0.866877,119470.0,119460.0,0.70865767]
[1753221605318,0.866877,119470.0,119460.0,0.45865767]
[1753221605619,0.940287,119470.0,119460.0,0.7235095]
[1753221606716,0.940287,119470.0,119460.0,0.71043144]
[1753221606918,0.940287,119470.0,119460.0,0.78372165]
[1753221607522,0.940287,119470.0,119460.0,0.78372151]
[1753221607822,0.940287,119470.0,119460.0,0.72351001]
[1753221608014,0.940287,119470.0,119460.0,0.78372151]
[1753221608221,0.940287,119470.0,119460.0,0.72351001]
[1753221608420,0.940287,119470.0,119460.0,0.22387635]
[1753221608622,0.940287,119470.0,119460.0,0.75358001]
[1753221608816,0.940287,119470.0,119460.0,0.81379151]
[1753221609834,0.940287,119470.0,119460.0,0.80398266]
[1753221610029,0.940287,119470.0,119460.0,0.75358005]
[1753221610229,0.940287,119470.0,119460.0,0.81379155]
[1753221610436,0.940287,119470.0,119460.0,0.8007133]
[1753221610734,0.940287,119470.0,119460.0,0.81379167]
[1753221610934,0.8984513,119470.0,119460.0,0.81379167]
[1753221611130,0.2511884,119480.0,119470.0,0.00365]
[1753221611337,0.2509884,119480.0,119470.0,0.45758183]
[1753221611532,0.8231484,119480.0,119470.0,0.45758183]
[1753221612330,0.8231484,119480.0,119470.0,0.48046656]
[1753221612830,0.9079584,119480.0,119470.0,0.48046656]
[1753221613335,0.3457984,119480.0,119470.0,0.91264919]
[1753221613539,0.3457984,119480.0,119470.0,0.97286069]
[1753221614033,0.2191568,119480.0,119470.0,1.22286069]
[1753221614237,0.2155068,119480.0,119470.0,1.22286069]
[1753221614538,0.2065068,119480.0,119470.0,1.22385986]
[1753221614735,0.2135068,119480.0,119470.0,1.22385986]
[1753221615036,0.2135068,119480.0,119470.0,1.78657295]
[1753221615237,0.2135068,119480.0,119470.0,1.47636145]
[1753221615425,0.32137443,119500.0,119480.0,0.06959]
[1753221615426,0.1303169,119500.0,119480.0,0.06959]
[1753221615630,0.2828983,119510.0,119500.0,0.2368788]
[1753221615832,0.2828983,119510.0,119500.0,0.62933221]
[1753221616032,0.2828983,119510.0,119500.0,0.96398101]
[1753221616333,0.2828983,119510.0,119500.0,0.992408]
[1753221616640,0.29766005,119510.0,119500.0,0.81204593]
[1753221617032,0.31766005,119510.0,119500.0,0.8345671]
[1753221617435,0.31766005,119510.0,119500.0,0.81204593]
[1753221617639,0.37050005,119510.0,119500.0,0.64468593]
[1753221618341,0.37050005,119510.0,119500.0,0.81197473]
[1753221618635,0.30296005,119510.0,119500.0,0.81197473]
[1753221619034,0.22916845,119510.0,119500.0,0.97933473]
[1753221619235,0.22916845,119510.0,119500.0,0.81550093]
[1753221619739,0.22916845,119510.0,119500.0,0.82493593]
[1753221619940,0.22916845,119510.0,119500.0,0.83800884]
[1753221620133,0.22916845,119510.0,119500.0,0.83800524]
[1753221620339,0.18734775,119510.0,119500.0,0.83800524]
[1753221620641,0.18734775,119510.0,119500.0,0.83974524]
[1753221621336,0.21931775,119510.0,119500.0,0.83974524]
[1753221621637,0.18734775,119510.0,119500.0,0.83974524]
[1753221622236,0.21931775,119510.0,119500.0,0.86224965]
[1753221622839,0.21931775,119510.0,119500.0,0.8322111]
[1753221624043,0.21931775,119510.0,119500.0,0.84741379]
[1753221624440,0.2509084,119520.0,119510.0,0.2382048]
[1753221624639,0.2828545,119530.0,119520.0,0.2386008]
[1753221624845,0.2508845,119530.0,119520.0,0.81675657]
[1753221625234,0.2508845,119530.0,119520.0,0.83754713]
[1753221625443,0.25096172,119530.0,119520.0,0.89781626]
[1753221625643,0.25796172,119530.0,119520.0,0.89781626]
[1753221627342,0.00707722,119530.0,119520.0,1.25061312]
[1753221627546,0.1093434,119560.0,119540.0,0.07134]
[1753221627748,0.2827938,119560.0,119550.0,0.6437082]
[1753221627948,0.2827938,119560.0,119550.0,0.65677871]
[1753221628346,0.2827938,119560.0,119550.0,0.67921552]
[1753221628748,0.2827938,119560.0,119550.0,0.64929978]
[1753221629647,0.2857938,119560.0,119550.0,0.64929978]
[1753221630049,0.3476338,119560.0,119550.0,0.64929978]
[1753221630249,0.3623338,119560.0,119550.0,0.64929978]
[1753221630748,0.3593338,119560.0,119550.0,0.65029978]
[1753221630944,0.3587238,119560.0,119550.0,0.65029978]
[1753221631152,0.3587238,119560.0,119550.0,0.32733494]
[1753221631454,0.3587238,119560.0,119550.0,0.512913]
[1753221631652,0.3587238,119560.0,119550.0,0.63525519]
[1753221631953,0.3587238,119560.0,119550.0,0.6801288]
[1753221632154,0.3587238,119560.0,119550.0,0.63525519]
[1753221633250,0.3587238,119560.0,119550.0,0.6576168]
[1753221633455,0.3557238,119560.0,119550.0,0.6576168]
[1753221633656,0.3752538,119560.0,119550.0,0.6576168]
[1753221633845,0.3772538,119560.0,119550.0,0.6576168]
[1753221634049,0.4173738,119560.0,119550.0,0.6576168]
[1753221634356,0.4173738,119560.0,119550.0,0.64454929]
[1753221634558,0.4173738,119560.0,119550.0,0.6576168]
[1753221634858,0.4173738,119560.0,119550.0,0.63525519]
[1753221635251,0.4173738,119560.0,119550.0,0.65760635]
[1753221639264,0.4173738,119560.0,119550.0,0.62777433]
[1753221641168,0.4173738,119560.0,119550.0,0.65760635]
[1753221643369,0.4173738,119560.0,119550.0,0.64453884]
[1753221643572,0.4173738,119560.0,119550.0,0.65760634]
[1753221644070,0.4173738,119560.0,119550.0,0.63525518]
[1753221647162,0.4173738,119560.0,119550.0,0.60542316]
[1753221648273,0.4173738,119560.0,119550.0,0.65029677]
[1753221648865,0.2747266,119560.0,119550.0,0.65029677]
[1753221649073,0.03997,119560.0,119550.0,0.65029677]
[1753221649372,0.03997,119560.0,119550.0,0.60542316]
[1753221649578,0.09262,119560.0,119550.0,0.66525464]
[1753221649768,0.10721,119560.0,119550.0,0.66525464]
[1753221650272,0.03997,119560.0,119550.0,0.66525464]
[1753221651066,0.008,119560.0,119550.0,1.0180515]
[1753221651266,0.008,119560.0,119550.0,1.25070632]
[1753221651463,0.03208,119570.0,119560.0,0.2286385]
[1753221651669,0.03188,119570.0,119560.0,1.58363044]
[1753221651974,0.03188,119570.0,119560.0,1.75090244]
[1753221652473,0.03188,119570.0,119560.0,1.73783494]
[1753221652673,0.08453,119570.0,119560.0,1.7509009]
[1753221652874,0.08653,119570.0,119560.0,1.7519009]
[1753221653175,0.16258,119570.0,119560.0,0.87903518]
[1753221653377,0.3297746,119570.0,119560.0,0.87903518]
[1753221653676,0.3297746,119570.0,119560.0,1.23183204]
[1753221653872,0.16258,119570.0,119560.0,1.23183204]
[1753221654074,0.3297746,119570.0,119560.0,1.23183204]
[1753221654269,0.16258,119570.0,119560.0,1.23183204]
[1753221654771,0.10112,119570.0,119560.0,1.5846289]
[1753221655076,0.10112,119570.0,119560.0,1.52473818]
[1753221655475,0.10112,119570.0,119560.0,1.59952055]
[1753221655974,0.2683146,119570.0,119560.0,1.59952055]
[1753221656175,0.2683146,119570.0,119560.0,1.24672369]
[1753221657370,0.2683146,119570.0,119560.0,1.59952055]
[1753221657974,0.2683146,119570.0,119560.0,1.24672369]
[1753221658577,0.2683146,119570.0,119560.0,1.59952055]
[1753221659076,0.10112,119570.0,119560.0,1.59952055]
[1753221659277,0.2683146,119570.0,119560.0,1.59952055]
[1753221659577,0.2683146,119570.0,119560.0,1.24672369]
[1753221659779,0.10112,119570.0,119560.0,1.24672369]
[1753221660773,0.03388,119570.0,119560.0,1.59952055]
[1753221660976,0.002,119570.0,119560.0,1.59952055]
[1753221661281,0.002,119570.0,119560.0,1.59950122]
[1753221661571,0.03388,119570.0,119560.0,1.59950122]
[1753221661970,0.10112,119570.0,119560.0,1.24670436]
[1753221662172,0.12239,119570.0,119560.0,0.8939075]
[1753221662376,0.16258,119570.0,119560.0,1.24670436]
[1753221667085,0.16258,119570.0,119560.0,1.59950122]
[1753221670079,0.16258,119570.0,119560.0,1.59949813]
[1753221670280,0.16258,119570.0,119560.0,1.52471576]
[1753221670479,0.3297746,119570.0,119560.0,1.52471576]
[1753221670683,0.3297746,119570.0,119560.0,1.51167222]
[1753221670886,0.3297746,119570.0,119560.0,1.24702383]
[1753221671081,0.16258,119570.0,119560.0,1.24702383]
[1753221672689,0.3297746,119570.0,119560.0,1.24702383]
[1753221673191,0.3297746,119570.0,119560.0,1.59982069]
[1753221673987,0.3297746,119570.0,119560.0,1.24702383]
[1753221675884,0.3297746,119570.0,119560.0,1.59982069]
[1753221676886,0.3297746,119570.0,119560.0,1.24702383]
[1753221679379,0.3297746,119570.0,119560.0,1.24674648]
[1753221679584,0.3297746,119570.0,119560.0,0.89394962]
[1753221679786,0.3297746,119570.0,119560.0,1.25654559]
[1753221679981,0.3297746,119570.0,119560.0,0.90374873]
[1753221680187,0.3297746,119570.0,119560.0,1.25654559]
[1753221682593,0.3297746,119570.0,119560.0,0.68011393]
[1753221682788,0.3297746,119570.0,119560.0,1.25659393]
[1753221682985,0.3297746,119570.0,119560.0,0.90379707]
[1753221683192,0.3297746,119570.0,119560.0,0.61868393]
[1753221683394,0.68257146,119570.0,119560.0,0.02357394]
[1753221683588,0.68257146,119570.0,119560.0,0.09867857]
[1753221683794,0.68257146,119570.0,119560.0,0.02357394]
[1753221684396,0.3297746,119570.0,119560.0,0.02357394]
[1753221684597,0.68257146,119570.0,119560.0,0.02357394]
[1753221684896,0.68257146,119570.0,119560.0,0.02357179]
[1753221685998,0.3297746,119570.0,119560.0,0.02357179]
[1753221686198,0.68257146,119570.0,119560.0,0.02357179]
[1753221686398,0.3274085,119560.0,119550.0,0.05927463]
[1753221686595,0.2219705,119530.0,119520.0,0.49959025]
[1753221686800,0.3060705,119530.0,119520.0,0.85238711]
[1753221687202,0.3060705,119530.0,119520.0,1.45243711]
[1753221687595,0.3060705,119530.0,119520.0,1.47812711]
[1753221688599,0.3060705,119530.0,119520.0,0.90000711]
[1753221688801,0.3060705,119530.0,119520.0,1.47816711]
[1753221689005,0.3070705,119530.0,119520.0,1.48716711]
[1753221691007,0.3070705,119530.0,119520.0,1.13437025]
[1753221691208,0.3070705,119530.0,119520.0,1.48716711]
[1753221691910,0.3090705,119530.0,119520.0,1.50516711]
[1753221692413,0.3080705,119530.0,119520.0,1.49716711]
[1753221693302,0.3080705,119530.0,119520.0,0.23369615]
[1753221693514,0.3084305,119530.0,119520.0,0.21349615]
[1753221693708,0.3084305,119530.0,119520.0,0.10063859]
[1753221694008,0.66122736,119530.0,119520.0,0.10063859]
[1753221694414,0.3084305,119530.0,119520.0,0.10063859]
[1753221695616,0.3084305,119530.0,119520.0,0.08480859]
[1753221696314,0.3084305,119530.0,119520.0,0.14482917]
[1753221696512,0.3084305,119530.0,119520.0,0.08480859]
[1753221697106,0.66122736,119530.0,119520.0,0.15985937]
[1753221697617,0.66122736,119530.0,119520.0,0.08480859]
[1753221698011,0.66122736,119530.0,119520.0,0.14481312]
[1753221698518,0.66122736,119530.0,119520.0,0.10750279]
[1753221699918,0.66122736,119530.0,119520.0,0.15247075]
[1753221700811,0.66122736,119530.0,119520.0,0.15246762]
[1753221701214,0.66122736,119530.0,119520.0,0.12977655]
[1753221703222,0.3084305,119530.0,119520.0,0.12977655]
[1753221703423,0.66122736,119530.0,119520.0,0.12977655]
[1753221703619,0.3084305,119530.0,119520.0,0.12977655]
[1753221703819,0.66122736,119530.0,119520.0,0.12977655]
[1753221704016,0.3084305,119530.0,119520.0,0.12977655]
[1753221704216,0.66122736,119530.0,119520.0,0.12977655]
[1753221705926,0.3084305,119530.0,119520.0,0.12977655]
[1753221706221,0.66122736,119530.0,119520.0,0.12977655]
[1753221707125,0.66122736,119530.0,119520.0,0.11475983]
[1753221710625,0.66122736,119530.0,119520.0,0.1072752]
[1753221711029,0.66122736,119530.0,119520.0,0.1220952]
[1753221711630,0.3084305,119530.0,119520.0,0.1220952]
[1753221711821,0.66122736,119530.0,119520.0,0.1220952]
[1753221712024,0.3084305,119530.0,119520.0,0.1220952]
[1753221712228,0.66122736,119530.0,119520.0,0.1220952]
[1753221712430,0.66122736,119530.0,119520.0,0.15204644]
[1753221713323,0.8875105,119530.0,119520.0,0.12957983]
[1753221713927,0.8875105,119530.0,119520.0,0.15205678]
[1753221714436,0.8875105,119530.0,119520.0,0.12957983]
[1753221716330,0.8868105,119530.0,119520.0,0.98985151]
[1753221716531,0.8868105,119530.0,119520.0,1.12716477]
[1753221716834,0.8870105,119530.0,119520.0,0.78736262]
[1753221717033,0.8870905,119530.0,119520.0,0.77436791]
[1753221717231,0.8870905,119530.0,119520.0,0.78736351]
[1753221717434,0.3074905,119530.0,119520.0,1.12716477]
[1753221717632,0.8521105,119530.0,119520.0,1.14016033]
[1753221718029,0.8521105,119530.0,119520.0,1.14996352]
[1753221718238,0.8329505,119530.0,119520.0,0.4443698]
[1753221718425,0.8329505,119530.0,119520.0,0.79920768]
[1753221718632,0.8329505,119530.0,119520.0,0.81220278]
[1753221718834,0.8530205,119530.0,119520.0,0.81220278]
[1753221719133,0.8530205,119530.0,119520.0,0.81220277]
[1753221719633,0.2734205,119530.0,119520.0,0.81220277]
[1753221720235,0.2533505,119530.0,119520.0,1.16499963]
[1753221720437,0.2533505,119530.0,119520.0,0.45940591]
[1753221720737,0.2533505,119530.0,119520.0,0.81220277]
[1753221721733,0.2533505,119530.0,119520.0,1.1049951]
[1753221722338,0.2533505,119530.0,119520.0,1.18004588]
[1753221722640,0.2533505,119530.0,119520.0,0.82724902]
[1753221722839,0.2533505,119530.0,119520.0,0.47445216]
[1753221723240,0.2533505,119530.0,119520.0,0.82724902]
[1753221723635,0.3060505,119530.0,119520.0,0.82724902]
[1753221725037,0.2734205,119530.0,119520.0,0.82724902]
[1753221725231,0.0418034,119560.0,119530.0,0.0418126]
[1753221725433,0.34531,119570.0,119560.0,0.1672085]
[1753221725637,0.2508088,119570.0,119560.0,1.09708813]
[1753221725837,0.2508088,119570.0,119560.0,1.05203768]
[1753221726234,0.1672924,119580.0,119570.0,0.3236345]
[1753221726543,0.1672924,119580.0,119570.0,0.72145877]
[1753221726745,0.1672924,119580.0,119570.0,0.74425656]
[1753221727036,0.1672924,119580.0,119570.0,0.74629988]
[1753221727240,0.1702924,119580.0,119570.0,0.69921716]
[1753221727439,0.1702924,119580.0,119570.0,0.75928613]
[1753221727642,0.1742924,119580.0,119570.0,0.76028613]
[1753221728037,0.0071,119580.0,119570.0,0.76028613]
[1753221728233,0.1742806,119580.0,119570.0,0.76028613]
[1753221728836,0.0071,119580.0,119570.0,0.76028613]
[1753221729632,0.1742806,119580.0,119570.0,0.40746943]
[1753221729837,0.1742806,119580.0,119570.0,0.76026629]
[1753221730036,0.1742806,119580.0,119570.0,0.70019732]
[1753221730445,0.1742806,119580.0,119570.0,0.76026629]
[1753221731643,0.1712806,119580.0,119570.0,0.76026629]
[1753221732041,0.1712806,119580.0,119570.0,0.34740046]
[1753221732543,0.1712806,119580.0,119570.0,0.70019732]
[1753221732738,0.1712806,119580.0,119570.0,0.70019645]
[1753221734445,0.1712806,119580.0,119570.0,0.68722934]
[1753221735744,0.0041,119580.0,119570.0,0.68722934]
[1753221735942,0.0041,119580.0,119570.0,0.68722916]
[1753221736138,0.0041,119580.0,119570.0,0.68722904]
[1753221736744,0.1712806,119580.0,119570.0,0.68722904]
[1753221736940,0.0041,119580.0,119570.0,0.73199884]
[1753221737238,0.0041,119580.0,119570.0,0.68722904]
[1753221737443,0.1712806,119580.0,119570.0,0.73199073]
[1753221737843,0.0041,119580.0,119570.0,0.73199073]
[1753221738945,0.0041,119580.0,119570.0,0.68722904]
[1753221739146,0.0041,119580.0,119570.0,0.81283777]
[1753221739345,0.1671695,119590.0,119580.0,0.3529165]
[1753221739644,0.2049398,119600.0,119580.0,0.3529165]
[1753221739645,0.3410725,119600.0,119590.0,0.3219966]
[1753221739834,0.3410725,119600.0,119590.0,0.70463077]
[1753221740744,0.3410725,119600.0,119590.0,0.70563077]
[1753221740946,0.3520725,119600.0,119590.0,0.70563077]
[1753221741747,0.3540725,119600.0,119590.0,0.70563077]
[1753221743649,0.3540725,119600.0,119590.0,0.77947533]
[1753221743843,0.3613325,119600.0,119590.0,1.29943879]
[1753221744250,0.3613325,119600.0,119590.0,1.36557315]
[1753221746150,0.3540725,119600.0,119590.0,1.38049197]
[1753221748357,0.3540725,119600.0,119590.0,1.33573584]
[1753221748858,0.3540725,119600.0,119590.0,1.38060772]
[1753221749051,0.3540725,119600.0,119590.0,1.33573584]
[1753221749252,0.3540725,119600.0,119590.0,1.38060824]
[1753221749448,0.3540725,119600.0,119590.0,1.33573584]
[1753221750056,0.013,119600.0,119590.0,1.33573584]
[1753221750257,0.1801535,119600.0,119590.0,0.75505584]
[1753221750860,0.1801535,119600.0,119590.0,0.81512481]
[1753221751249,0.1751535,119600.0,119590.0,0.81412481]
[1753221751454,0.1751535,119600.0,119590.0,1.39516481]
[1753221751658,0.1731535,119600.0,119590.0,1.39516481]
[1753221752060,0.1731535,119600.0,119590.0,1.33509584]
[1753221753360,0.1731535,119600.0,119590.0,1.39516481]
[1753221754155,0.006,119600.0,119590.0,1.39516481]
[1753221754459,0.1731534,119600.0,119590.0,1.39516481]
[1753221754761,0.006,119600.0,119590.0,1.39516481]
[1753221754963,0.1731534,119600.0,119590.0,1.39536481]
[1753221755261,0.006,119600.0,119590.0,1.33529584]
[1753221755462,0.1731534,119600.0,119590.0,1.33529584]
[1753221755662,0.006,119600.0,119590.0,1.33529584]
[1753221755864,0.006,119600.0,119590.0,0.82910662]
[1753221756064,0.1731534,119600.0,119590.0,1.41038662]
[1753221756364,0.1731534,119600.0,119590.0,0.82910662]
[1753221756663,0.006,119600.0,119590.0,1.41050662]
[1753221757064,0.006,119600.0,119590.0,1.42030312]
[1753221757265,0.1731534,119600.0,119590.0,1.42030312]
[1753221758161,0.1731534,119600.0,119590.0,1.43332951]
[1753221759568,0.1731534,119600.0,119590.0,0.85192951]
[1753221759766,0.1731534,119600.0,119590.0,1.43328951]
[1753221760067,0.2214134,119600.0,119590.0,1.43328901]
[1753221760965,0.2506334,119600.0,119590.0,1.43328901]
[1753221762864,0.2709634,119600.0,119590.0,1.43328901]
[1753221764060,0.3173934,119600.0,119590.0,0.28402555]
[1753221764266,0.67019026,119600.0,119590.0,0.19248555]
[1753221764568,0.67019026,119600.0,119590.0,0.17713555]
[1753221764769,0.67019026,119600.0,119590.0,0.09228827]
[1753221764959,0.67019026,119600.0,119590.0,0.1523744]
[1753221765564,0.67019026,119600.0,119590.0,0.09228827]
[1753221765769,0.67019026,119600.0,119590.0,0.10762827]
[1753221765962,0.67019026,119600.0,119590.0,0.11742698]
[1753221767161,0.67019026,119600.0,119590.0,0.10208698]
[1753221767869,0.67019026,119600.0,119590.0,0.14714829]
[1753221768867,0.3173934,119600.0,119590.0,0.08906117]
[1753221769067,0.67019026,119600.0,119590.0,0.11742628]
[1753221769266,0.3173934,119600.0,119590.0,0.11742628]
[1753221769563,0.3173934,119600.0,119590.0,0.11742519]
[1753221770872,0.3173934,119600.0,119590.0,0.47022205]
[1753221771172,0.3173934,119600.0,119590.0,0.11742519]
[1753221771965,0.3173934,119600.0,119590.0,0.10440117]
[1753221772171,0.3173934,119600.0,119590.0,0.11742256]
[1753221775567,0.3173934,119600.0,119590.0,0.12482256]
[1753221776787,0.3173934,119600.0,119590.0,0.40169495]
[1753221777076,0.3173934,119600.0,119590.0,0.39189616]
[1753221778071,0.3173934,119600.0,119590.0,0.37887477]
[1753221778670,0.3173934,119600.0,119590.0,0.4389609]
[1753221778871,0.3173934,119600.0,119590.0,0.10200238]
[1753221779268,0.3173934,119600.0,119590.0,0.14702194]
[1753221779875,0.3173934,119600.0,119590.0,0.42389433]
[1753221781576,0.3173934,119600.0,119590.0,0.44414433]
[1753221781976,0.1731534,119600.0,119590.0,0.71925183]
[1753221782174,0.0002,119610.0,119600.0,0.3180835]
[1753221782371,0.2091106,119620.0,119610.0,0.3180695]
[1753221782571,0.2091106,119620.0,119610.0,0.63995072]
[1753221782572,0.2089106,119620.0,119610.0,0.63995072]